fUST/lending_fUST_20250407
["ID","MTS","AMOUNT","RATE_DAILY","PERIOD"]
[357302085,1743999080675,-500.0,0.00040273,7]
[357302086,1743999080685,-500.0,0.00040273,7]
[357302087,1743999080698,-690.62,0.00040273,7]
[357302088,1743999080708,-500.0,0.00040273,7]
[357302089,1743999080717,-1235.1,0.00040273,7]
[357302090,1743999080727,-500.0,0.00040273,7]
[357302091,1743999080736,-500.0,0.00040273,7]
[357302092,1743999080746,-1129.9,0.00040273,7]
[357302093,1743999080755,-2511.7,0.00040273,7]
[357302094,1743999080764,-500.0,0.00040273,7]
[357302095,1743999080774,-500.0,0.00040273,7]
[357302096,1743999080784,-882.15,0.00040273,7]
[357302097,1743999080794,-2115.76,0.00040273,7]
[357302098,1743999080803,-587.18811976,0.00040273,7]
[357302099,1743999080813,-500.0,0.00040273,7]
[357302100,1743999080822,-500.0,0.00040273,7]
[357302101,1743999080833,-500.0,0.00040273,7]
[357302102,1743999080842,-500.0,0.00040273,7]
[357302103,1743999080852,-500.0,0.00040273,7]
[357302104,1743999080861,-500.0,0.00040273,7]
[357302105,1743999080871,-500.0,0.00040273,7]
[357302106,1743999080881,-500.0,0.00040273,7]
[357302107,1743999080890,-1244.29,0.00040273,7]
[357302108,1743999080899,-1957.15,0.00040273,7]
[357302109,1743999080909,-500.0,0.00040273,7]
[357302110,1743999080918,-500.0,0.00040273,7]
[357302111,1743999080928,-971.01,0.00040273,7]
[357302112,1743999080938,-500.0,0.00040273,7]
[357302113,1743999080948,-500.0,0.00040273,7]
[357302114,1743999080958,-573.33,0.00040273,7]
[357302115,1743999080968,-500.0,0.00040273,7]
[357302116,1743999080978,-1079.38,0.00040273,7]
[357302117,1743999080988,-2231.25,0.00040273,7]
[357302118,1743999080997,-633.15,0.00040273,7]
[357302119,1743999081008,-500.0,0.00040273,7]
[357302120,1743999081021,-860.01,0.00040273,7]
[357302121,1743999081031,-1123.02,0.00040273,7]
[357302122,1743999081041,-500.0,0.00040273,7]
[357302123,1743999081051,-500.0,0.00040273,7]
[357302124,1743999081062,-500.0,0.00040273,7]
[357302125,1743999081072,-500.0,0.00040273,7]
[357302126,1743999081081,-500.0,0.00040273,7]
[357302127,1743999081091,-500.0,0.00040273,7]
[357302128,1743999081102,-1176.27,0.00040273,7]
[357302129,1743999081114,-500.0,0.00040273,7]
[357302130,1743999081124,-500.0,0.00040273,7]
[357302131,1743999081135,-2998.3,0.00040273,7]
[357302132,1743999081145,-953.53,0.00040273,7]
[357302133,1743999081156,-500.0,0.00040273,7]
[357302134,1743999081166,-1355.54,0.00040273,7]
[357302135,1743999081176,-500.0,0.00040273,7]
[357302136,1743999081186,-3062.34,0.00040273,7]
[357302137,1743999081204,-500.0,0.00040273,7]
[357302138,1743999081215,-500.0,0.00040273,7]
[357302139,1743999081226,-1613.69,0.00040273,7]
[357302140,1743999081236,-798.12,0.00040273,7]
[357302141,1743999081250,-500.0,0.00040273,7]
[357302142,1743999081262,-3548.41,0.00040273,7]
[357302143,1743999081274,-500.0,0.00040273,7]
[357302144,1743999081285,-500.0,0.00040273,7]
[357302145,1743999081297,-704.04,0.00040273,7]
[357302146,1743999081309,-2545.27,0.00040273,7]
[357302147,1743999081320,-500.0,0.00040273,7]
[357302148,1743999081331,-7458.22,0.00040273,7]
[357302149,1743999081342,-500.0,0.00040273,7]
[357302150,1743999081352,-1543.8,0.00040273,7]
[357302151,1743999081363,-500.0,0.00040273,7]
[357302152,1743999081374,-1149.97,0.00040273,7]
[357302153,1743999081384,-500.0,0.00040273,7]
[357302154,1743999081395,-1198.06,0.00040273,7]
[357302155,1743999081405,-500.0,0.00040273,7]
[357302156,1743999081415,-635.38,0.00040273,7]
[357302157,1743999081424,-541.59,0.00040273,7]
[357302158,1743999081436,-1015.47,0.00040273,7]
[357302159,1743999081453,-546.01,0.00040273,7]
[357302160,1743999081463,-500.0,0.00040273,7]
[357302161,1743999081474,-1323.14,0.00040273,7]
[357302162,1743999081484,-500.0,0.00040273,7]
[357302163,1743999081494,-1756.05,0.00040273,7]
[357302164,1743999081504,-500.0,0.00040273,7]
[357302165,1743999081514,-577.2,0.00040273,7]
[357302166,1743999081523,-500.0,0.00040273,7]
[357302167,1743999081533,-500.0,0.00040273,7]
[357302168,1743999081711,-4122.85,0.00040273,7]
[357302169,1743999081722,-776.24,0.00040273,7]
[357302170,1743999081732,-500.0,0.00040273,7]
[357302171,1743999081742,-500.0,0.00040273,7]
[357302172,1743999081752,-1159.91,0.00040273,7]
[357302173,1743999081762,-758.62,0.00040273,7]
[357302174,1743999081772,-297.94038656,0.00040273,7]
[357302175,1743999081781,-1598.41,0.00040273,7]
[357302176,1743999081791,-557.22,0.00040273,7]
[357302177,1743999081802,-20494.34,0.00040273,7]
[357302178,1743999081811,-606.51,0.00040273,7]
[357302179,1743999081821,-500.0,0.00040273,7]
[357302180,1743999081831,-801.33,0.00040273,7]
[357302181,1743999081840,-500.0,0.00040273,7]
[357302182,1743999081850,-500.0,0.00040273,7]
[357302183,1743999081859,-500.0,0.00040273,7]
[357302184,1743999081869,-500.0,0.00040273,7]
[357302185,1743999081879,-528.76,0.00040273,7]
[357302186,1743999081889,-500.0,0.00040273,7]
[357302187,1743999081899,-1791.73,0.00040273,7]
[357302188,1743999081909,-500.0,0.00040273,7]
[357302189,1743999081919,-500.0,0.00040273,7]
[357302190,1743999081928,-500.0,0.00040273,7]
[357302191,1743999081938,-2408.79,0.00040273,7]
[357302192,1743999081949,-500.0,0.00040273,7]
[357302193,1743999081958,-500.0,0.00040273,7]
[357302194,1743999081968,-500.0,0.00040273,7]
[357302195,1743999081978,-976.13,0.00040273,7]
[357302196,1743999081987,-2860.97,0.00040273,2]
[357302197,1743999081997,-500.0,0.00040273,7]
[357302198,1743999082007,-500.0,0.00040273,7]
[357302199,1743999082018,-554.55,0.00040273,7]
[357302200,1743999082032,-500.0,0.00040273,7]
[357302201,1743999082041,-6441.92,0.00040273,7]
[357302202,1743999082051,-500.0,0.00040273,7]
[357302203,1743999082060,-562.22,0.00040273,7]
[357302204,1743999082071,-500.0,0.00040273,7]
[357302205,1743999082080,-1285.05,0.00040273,7]
[357302206,1743999082089,-6825.27,0.00040273,7]
[357302207,1743999082098,-500.0,0.00040273,7]
[357302208,1743999082110,-500.0,0.00040273,7]
[357302209,1743999082120,-533.02,0.00040273,7]
[357302210,1743999082130,-589.02525806,0.00040273,7]
[357302211,1743999082140,-7038.46,0.00040273,7]
[357302212,1743999082149,-850.81,0.00040273,7]
[357302213,1743999082159,-749.51,0.00040273,7]
[357302214,1743999082169,-500.0,0.00040273,7]
[357302215,1743999082179,-500.0,0.00040273,7]
[357302216,1743999082191,-9271.27,0.00040273,7]
[357302217,1743999082201,-815.55,0.00040273,7]
[357302218,1743999082211,-740.56,0.00040273,7]
[357302219,1743999082220,-500.0,0.00040273,7]
[357302220,1743999082230,-7581.46,0.00040273,7]
[357302221,1743999082239,-2322.26,0.00040273,7]
[357302222,1743999082249,-155.94098993,0.00040273,7]
[357302223,1743999082259,-1678.06,0.00040273,7]
[357302224,1743999082269,-338.3855607,0.00040273,7]
[357302225,1743999082279,-500.0,0.00040273,7]
[357302226,1743999082289,-546.3,0.00040273,7]
[357302227,1743999082299,-500.0,0.00040273,7]
[357302228,1743999082308,-2239.86,0.00040273,7]
[357302229,1743999082317,-500.0,0.00040273,7]
[357302230,1743999082327,-1992.21,0.00040273,7]
[357302231,1743999082336,-5222.49,0.00040273,7]
[357302232,1743999082345,-4754.1,0.00040273,7]
[357302233,1743999082355,-2107.47,0.00040273,7]
[357302234,1743999082364,-2901.78,0.00040273,7]
[357302235,1743999082374,-500.0,0.00040273,7]
[357302236,1743999082385,-464.06167841,0.00040273,7]
[357302237,1743999082395,-500.0,0.00040273,7]
[357302238,1743999082404,-500.0,0.00040273,7]
[357302239,1743999082414,-1010.94950908,0.00040273,3]
[357302240,1743999082424,-525.89,0.00040273,7]
[357302241,1743999082433,-1115.98,0.00040273,7]
[357302242,1743999082447,-1085.62,0.00040273,7]
[357302243,1743999082457,-500.0,0.00040273,7]
[357302244,1743999082467,-1195.53,0.00040273,7]
[357302245,1743999082476,-532.99566272,0.00040273,7]
[357302246,1743999082486,-500.0,0.00040273,7]
[357302247,1743999082496,-10765.04,0.00040273,7]
[357302248,1743999082506,-2187.41,0.00040273,7]
[357302249,1743999082516,-535.02,0.00040273,7]
[357302250,1743999082526,-500.0,0.00040273,7]
[357302251,1743999082536,-712.26,0.00040273,7]
[357302252,1743999082546,-568.12,0.00040273,7]
[357302253,1743999082555,-500.0,0.00040273,7]
[357302254,1743999082565,-155.48951476,0.00040273,7]
[357302255,1743999082575,-1109.5,0.00040273,7]
[357302256,1743999082585,-6670.03,0.00040273,7]
[357302257,1743999082595,-204.01026067,0.00040273,7]
[357302258,1743999082605,-675.86,0.00040273,7]
[357302259,1743999082615,-223.28834163,0.00040273,7]
[357302260,1743999082624,-1071.0,0.00040273,7]
[357302261,1743999082634,-500.0,0.00040273,7]
[357302262,1743999082644,-568.72,0.00040273,7]
[357302263,1743999082655,-808.46,0.00040273,7]
[357302264,1743999082665,-500.0,0.00040273,7]
[357302265,1743999082675,-500.0,0.00040273,7]
[357302266,1743999082685,-500.0,0.00040273,7]
[357302267,1743999082699,-500.0,0.00040273,7]
[357302268,1743999082710,-4170.44,0.00040273,7]
[357302269,1743999082720,-1807.07,0.00040273,7]
[357302270,1743999082731,-500.0,0.00040273,7]
[357302271,1743999082741,-500.0,0.00040273,7]
[357302272,1743999082751,-500.0,0.00040273,7]
[357302273,1743999082761,-2267.94,0.00040273,7]
[357302274,1743999082771,-8180.17,0.00040273,7]
[357302275,1743999082781,-500.0,0.00040273,7]
[357302276,1743999082791,-500.0,0.00040273,7]
[357302277,1743999082801,-500.0,0.00040273,7]
[357302278,1743999082811,-500.0,0.00040273,7]
[357302279,1743999082820,-500.0,0.00040273,7]
[357302280,1743999082831,-500.0,0.00040273,7]
[357302281,1743999082842,-537.36,0.00040273,7]
[357302282,1743999082853,-1000.0,0.00040273,90]
[357302283,1743999082863,-500.0,0.00040273,7]
[357302284,1743999082873,-500.0,0.00040273,7]
[357302285,1743999082883,-18560.06,0.00040273,7]
[357302286,1743999082894,-500.0,0.00040273,7]
[357302287,1743999082904,-8705.04,0.00040273,7]
[357302288,1743999082913,-500.0,0.00040309,30]
[357302289,1743999082923,-450.0,0.00040316,2]
[357302290,1743999082933,-800.0,0.00040398,7]
[357302291,1743999082947,-160.0,0.00040466,2]
[357302292,1743999082957,-199.91077663,0.00040547,7]
[357302293,1743999082967,-511.42,0.00040547,7]
[357302294,1743999082977,-500.0,0.00040547,7]
[357302295,1743999082987,-509.35,0.00040547,7]
[357302296,1743999082997,-540.93,0.00040547,7]
[357302297,1743999083007,-500.0,0.00040547,7]
[357302298,1743999083018,-704.76,0.00040547,7]
[357302299,1743999083030,-1047.59,0.00040547,7]
[357302300,1743999083040,-729.4900017,0.00040547,30]
[357302301,1743999083050,-500.0,0.00040547,7]
[357302302,1743999083061,-500.0,0.00040547,7]
[357302303,1743999083071,-500.0,0.00040547,7]
[357302304,1743999083080,-500.0,0.00040547,7]
[357302305,1743999083090,-500.0,0.00040547,7]
[357302306,1743999083100,-1299.52,0.00040547,7]
[357302307,1743999083111,-630.46580915,0.00040547,7]
[357302308,1743999083122,-500.0,0.00040547,7]
[357302309,1743999083131,-589.31,0.00040547,7]
[357302310,1743999083141,-961.09,0.00040547,7]
[357302311,1743999083152,-766.96,0.00040547,7]
[357302312,1743999083162,-500.0,0.00040547,7]
[357302313,1743999083172,-500.0,0.00040547,7]
[357302314,1743999083181,-500.0,0.00040547,7]
[357302315,1743999083194,-500.0,0.00040547,7]
[357302316,1743999083204,-302.18197651,0.00040547,7]
[357302317,1743999083214,-500.0,0.00040547,7]
[357302318,1743999083224,-500.0,0.00040547,7]
[357302319,1743999083233,-1006.09,0.00040547,7]
[357302320,1743999083243,-500.0,0.00040547,7]
[357302321,1743999083252,-500.0,0.00040547,7]
[357302322,1743999083262,-500.0,0.00040547,7]
[357302323,1743999083272,-505.78,0.00040547,7]
[357302324,1743999083282,-694.82,0.00040547,7]
[357302325,1743999083291,-499.0863901,0.00040547,7]
[357302326,1743999083300,-1406.25,0.00040547,7]
[357302327,1743999083310,-500.0,0.00040547,7]
[357302328,1743999083320,-1333.32,0.00040547,7]
[357302329,1743999083330,-500.0,0.00040547,7]
[357302330,1743999083339,-595.64,0.00040547,7]
[357302331,1743999083349,-500.0,0.00040547,7]
[357302332,1743999083358,-500.0,0.00040547,7]
[357302333,1743999083368,-501.28,0.00040547,7]
[357302334,1743999083377,-500.0,0.00040547,7]
[357302335,1743999083387,-545.46,0.00040547,7]
[357302336,1743999083397,-1298.7,0.00040547,7]
[357302337,1743999083407,-500.0,0.00040547,7]
[357302338,1743999083416,-500.0,0.00040547,7]
[357302339,1743999083426,-500.0,0.00040547,7]
[357302340,1743999083436,-579.21,0.00040547,7]
[357302341,1743999083449,-816.37,0.00040547,7]
[357302342,1743999083460,-500.0,0.00040547,7]
[357302343,1743999083469,-500.0,0.00040547,7]
[357302344,1743999083479,-500.0,0.00040547,7]
[357302345,1743999083489,-500.0,0.00040547,7]
[357302346,1743999083498,-528.93,0.00040547,7]
[357302347,1743999083508,-504.09,0.00040547,7]
[357302348,1743999083518,-539.99,0.00040547,7]
[357302349,1743999083527,-500.0,0.00040547,7]
[357302350,1743999083536,-500.0,0.00040547,7]
[357302351,1743999083546,-622.51,0.00040547,7]
[357302352,1743999083556,-500.0,0.00040547,7]
[357302353,1743999083566,-500.0,0.00040547,7]
[357302354,1743999083576,-1374.07,0.00040547,7]
[357302355,1743999083585,-441.21632218,0.00040547,7]
[357302356,1743999083596,-500.0,0.00040547,7]
[357302357,1743999083606,-757.16,0.00040547,7]
[357302358,1743999083616,-500.0,0.00040547,7]
[357302359,1743999083627,-500.0,0.00040547,7]
[357302360,1743999083637,-500.0,0.00040547,7]
[357302361,1743999083647,-500.0,0.00040547,7]
[357302362,1743999083657,-871.18,0.00040547,7]
[357302363,1743999083667,-500.0,0.00040547,7]
[357302364,1743999083676,-500.0,0.00040547,7]
[357302365,1743999083686,-200.0,0.00040547,7]
[357302366,1743999083699,-500.0,0.00040547,7]
[357302367,1743999083709,-562.53,0.00040547,7]
[357302368,1743999083720,-500.0,0.00040547,7]
[357302369,1743999083730,-500.0,0.00040547,7]
[357302370,1743999083739,-622.82,0.00040547,7]
[357302371,1743999083750,-500.0,0.00040547,7]
[357302372,1743999083760,-500.0,0.00040547,7]
[357302373,1743999083769,-500.0,0.00040547,7]
[357302374,1743999083779,-500.0,0.00040547,7]
[357302375,1743999083789,-1670.91,0.00040547,7]
[357302376,1743999083799,-1175.6,0.00040547,7]
[357302377,1743999083809,-500.0,0.00040547,7]
[357302378,1743999083819,-503.97,0.00040547,7]
[357302379,1743999083829,-404.21408849,0.00040547,7]
[357302380,1743999083840,-938.15,0.00040547,7]
[357302381,1743999083850,-515.78,0.00040547,7]
[357302382,1743999083860,-639.59,0.00040547,7]
[357302383,1743999083870,-1047.08,0.00040547,7]
[357302384,1743999083880,-500.0,0.00040547,7]
[357302385,1743999083890,-500.0,0.00040547,60]
[357302386,1743999083899,-500.0,0.00040547,60]
[357302387,1743999083909,-500.0,0.00040547,60]
[357302388,1743999083919,-500.00000001,0.00040547,60]
[357302389,1743999083928,-595.91,0.00040547,7]
[357302390,1743999083938,-500.0,0.00040547,7]
[357302391,1743999083950,-500.0,0.00040547,7]
[357302392,1743999083961,-500.0,0.00040547,7]
[357302393,1743999083970,-500.0,0.00040547,7]
[357302394,1743999083980,-500.0,0.00040547,7]
[357302395,1743999083990,-594.33,0.00040547,7]
[357302396,1743999084000,-2427.28,0.00040547,7]
[357302397,1743999084009,-500.0,0.00040547,7]
[357302398,1743999084020,-523.68,0.00040547,7]
[357302399,1743999084032,-702.99,0.00040547,7]
[357302400,1743999084042,-500.0,0.00040547,7]
[357302401,1743999084052,-362.97286496,0.00040547,7]
[357302402,1743999084061,-690.62,0.00040547,7]
[357302403,1743999084073,-500.0,0.00040547,7]
[357302404,1743999084082,-1235.1,0.00040547,7]
[357302405,1743999084092,-500.0,0.00040547,7]
[357302406,1743999084102,-500.0,0.00040547,7]
[357302407,1743999084111,-1129.9,0.00040547,7]
[357302408,1743999084121,-2511.7,0.00040547,7]
[357302409,1743999084131,-500.0,0.00040547,7]
[357302410,1743999084140,-500.0,0.00040547,7]
[357302411,1743999084150,-882.15,0.00040547,7]
[357302412,1743999084159,-2115.76,0.00040547,7]
[357302413,1743999084168,-500.0,0.00040547,7]
[357302414,1743999084178,-500.0,0.00040547,7]
[357302415,1743999084237,-500.0,0.00040547,7]
[357302416,1743999084246,-500.0,0.00040547,7]
[357302417,1743999084255,-500.0,0.00040547,7]
[357302418,1743999084265,-500.0,0.00040547,7]
[357302419,1743999084274,-500.0,0.00040547,7]
[357302420,1743999084283,-500.0,0.00040547,7]
[357302421,1743999084293,-1244.29,0.00040547,7]
[357302422,1743999084303,-500.0,0.00040547,7]
[357302423,1743999084312,-500.0,0.00040547,7]
[357302424,1743999084322,-1957.15,0.00040547,7]
[357302425,1743999084331,-971.01,0.00040547,7]
[357302426,1743999084341,-500.0,0.00040547,7]
[357302427,1743999084350,-500.0,0.00040547,7]
[357302428,1743999084360,-573.33,0.00040547,7]
[357302429,1743999084369,-500.0,0.00040547,7]
[357302430,1743999084378,-1079.38,0.00040547,7]
[357302431,1743999084388,-2231.25,0.00040547,7]
[357302432,1743999084398,-633.15,0.00040547,7]
[357302433,1743999084407,-500.0,0.00040547,7]
[357302434,1743999084417,-860.01,0.00040547,7]
[357302435,1743999084427,-1123.02,0.00040547,7]
[357302436,1743999084436,-500.0,0.00040547,7]
[357302437,1743999084448,-500.0,0.00040547,7]
[357302438,1743999084457,-500.0,0.00040547,7]
[357302439,1743999084467,-500.0,0.00040547,7]
[357302440,1743999084476,-500.0,0.00040547,7]
[357302441,1743999084485,-500.0,0.00040547,7]
[357302442,1743999084495,-1176.27,0.00040547,7]
[357302443,1743999084504,-500.0,0.00040547,7]
[357302444,1743999084513,-500.0,0.00040547,7]
[357302445,1743999084523,-2998.3,0.00040547,7]
[357302446,1743999084532,-953.53,0.00040547,7]
[357302447,1743999084542,-500.0,0.00040547,7]
[357302448,1743999084552,-1355.54,0.00040547,7]
[357302449,1743999084562,-500.0,0.00040547,7]
[357302450,1743999084572,-3062.34,0.00040547,7]
[357302451,1743999084581,-500.0,0.00040547,7]
[357302452,1743999084591,-500.0,0.00040547,7]
[357302453,1743999084600,-1613.69,0.00040547,7]
[357302454,1743999084611,-798.12,0.00040547,7]
[357302455,1743999084620,-500.0,0.00040547,7]
[357302456,1743999084629,-3548.41,0.00040547,7]
[357302457,1743999084639,-500.0,0.00040547,7]
[357302458,1743999084648,-480.23615618,0.00040547,7]
[357302459,1743999084657,-704.04,0.00040547,7]
[357302460,1743999084668,-2545.27,0.00040547,7]
[357302461,1743999084677,-500.0,0.00040547,7]
[357302462,1743999084687,-7458.22,0.00040547,7]
[357302463,1743999084699,-500.0,0.00040547,7]
[357302464,1743999084708,-1543.8,0.00040547,7]
[357302465,1743999084718,-551.89971764,0.00040547,7]
[357302466,1743999084727,-1149.97,0.00040547,7]
[357302467,1743999084738,-500.0,0.00040547,7]
[357302468,1743999084747,-1198.06,0.00040547,7]
[357302469,1743999084757,-500.0,0.00040547,7]
[357302470,1743999084767,-635.38,0.00040547,7]
[357302471,1743999084777,-541.59,0.00040547,7]
[357302472,1743999084786,-1015.47,0.00040547,7]
[357302473,1743999084796,-546.01,0.00040547,7]
[357302474,1743999084806,-500.0,0.00040547,7]
[357302475,1743999084815,-1323.14,0.00040547,7]
[357302476,1743999084825,-500.0,0.00040547,7]
[357302477,1743999084835,-1756.05,0.00040547,7]
[357302478,1743999084845,-500.0,0.00040547,7]
[357302479,1743999084855,-577.2,0.00040547,7]
[357302480,1743999084866,-500.0,0.00040547,7]
[357302481,1743999084876,-500.0,0.00040547,7]
[357302482,1743999084886,-4122.85,0.00040547,7]
[357302483,1743999084896,-776.24,0.00040547,7]
[357302484,1743999084907,-500.0,0.00040547,7]
[357302485,1743999084917,-384.85908172,0.00040547,7]
[357302486,1743999084928,-1159.91,0.00040547,7]
[357302487,1743999084938,-758.62,0.00040547,7]
[357302488,1743999084951,-1598.41,0.00040547,7]
[357302489,1743999084962,-557.22,0.00040547,7]
[357302490,1743999084972,-20494.34,0.00040547,7]
[357302491,1743999084982,-606.51,0.00040547,7]
[357302492,1743999084993,-500.0,0.00040547,7]
[357302493,1743999085002,-801.33,0.00040547,7]
[357302494,1743999085013,-500.0,0.00040547,7]
[357302495,1743999085027,-500.0,0.00040547,7]
[357302496,1743999085037,-500.0,0.00040547,7]
[357302497,1743999085048,-528.76,0.00040547,7]
[357302498,1743999085058,-500.0,0.00040547,7]
[357302499,1743999085068,-1791.73,0.00040547,7]
[357302500,1743999085078,-296.95845861,0.00040547,7]
[357302501,1743999085088,-500.0,0.00040547,7]
[357302502,1743999085098,-500.0,0.00040547,7]
[357302503,1743999085109,-2408.79,0.00040547,7]
[357302504,1743999085119,-500.0,0.00040547,7]
[357302505,1743999085130,-500.0,0.00040547,7]
[357302506,1743999085140,-500.0,0.00040547,7]
[357302507,1743999085149,-976.13,0.00040547,7]
[357302508,1743999085159,-2860.97,0.00040547,2]
[357302509,1743999085169,-500.0,0.00040547,7]
[357302510,1743999085179,-500.0,0.00040547,7]
[357302511,1743999085190,-554.55,0.00040547,7]
[357302512,1743999085203,-500.0,0.00040547,7]
[357302513,1743999085214,-6441.92,0.00040547,7]
[357302514,1743999085224,-500.0,0.00040547,7]
[357302515,1743999085234,-562.22,0.00040547,7]
[357302516,1743999085244,-500.0,0.00040547,7]
[357302517,1743999085254,-1285.05,0.00040547,7]
[357302518,1743999085264,-6825.27,0.00040547,7]
[357302519,1743999085274,-500.0,0.00040547,7]
[357302520,1743999085284,-500.0,0.00040547,7]
[357302521,1743999085294,-533.02,0.00040547,7]
[357302522,1743999085305,-7038.46,0.00040547,7]
[357302523,1743999085315,-850.81,0.00040547,7]
[357302524,1743999085326,-594.58365808,0.00040547,7]
[357302525,1743999085337,-500.0,0.00040547,7]
[357302526,1743999085348,-9271.27,0.00040547,7]
[357302527,1743999085358,-815.55,0.00040547,7]
[357302528,1743999085368,-740.56,0.00040547,7]
[357302529,1743999085378,-500.0,0.00040547,7]
[357302530,1743999085389,-7581.46,0.00040547,7]
[357302531,1743999085399,-2322.26,0.00040547,7]
[357302532,1743999085410,-1678.06,0.00040547,7]
[357302533,1743999085420,-500.0,0.00040547,7]
[357302534,1743999085430,-546.3,0.00040547,7]
[357302535,1743999085440,-500.0,0.00040547,7]
[357302536,1743999085455,-2239.86,0.00040547,7]
[357302537,1743999085465,-500.0,0.00040547,7]
[357302538,1743999085476,-749.51,0.00040547,7]
[357302539,1743999085486,-1992.21,0.00040547,7]
[357302540,1743999085496,-5222.49,0.00040547,7]
[357302541,1743999085506,-4754.1,0.00040547,7]
[357302542,1743999085516,-2107.47,0.00040547,7]
[357302543,1743999085526,-2901.78,0.00040547,7]
[357302544,1743999085536,-500.0,0.00040547,7]
[357302545,1743999085546,-539.87683658,0.00040547,7]
[357302546,1743999085557,-500.0,0.00040547,7]
[357302547,1743999085567,-525.89,0.00040547,7]
[357302548,1743999085578,-1115.98,0.00040547,7]
[357302549,1743999085589,-1085.62,0.00040547,7]
[357302550,1743999085599,-424.61684319,0.00040547,7]
[357302551,1743999085610,-1195.53,0.00040547,7]
[357302552,1743999085621,-500.0,0.00040547,7]
[357302553,1743999085631,-10765.04,0.00040547,7]
[357302554,1743999085641,-2187.41,0.00040547,7]
[357302555,1743999085651,-535.02,0.00040547,7]
[357302556,1743999085661,-500.0,0.00040547,7]
[357302557,1743999085672,-712.26,0.00040547,7]
[357302558,1743999085682,-568.12,0.00040547,7]
[357302559,1743999085695,-500.0,0.00040547,7]
[357302560,1743999085705,-1109.5,0.00040547,7]
[357302561,1743999085715,-6670.03,0.00040547,7]
[357302562,1743999085725,-675.86,0.00040547,7]
[357302563,1743999085735,-1071.0,0.00040547,7]
[357302564,1743999085745,-500.0,0.00040547,7]
[357302565,1743999085754,-568.72,0.00040547,7]
[357302566,1743999085764,-808.46,0.00040547,7]
[357302567,1743999085774,-500.0,0.00040547,7]
[357302568,1743999085784,-500.0,0.00040547,7]
[357302569,1743999085794,-500.0,0.00040547,7]
[357302570,1743999085804,-500.0,0.00040547,7]
[357302571,1743999085815,-4170.44,0.00040547,7]
[357302572,1743999085825,-1807.07,0.00040547,7]
[357302573,1743999085835,-500.0,0.00040547,7]
[357302574,1743999085846,-500.0,0.00040547,7]
[357302575,1743999085856,-500.0,0.00040547,7]
[357302576,1743999085866,-2267.94,0.00040547,7]
[357302577,1743999085876,-8180.17,0.00040547,7]
[357302578,1743999085887,-500.0,0.00040547,7]
[357302579,1743999085898,-500.0,0.00040547,7]
[357302580,1743999085908,-500.0,0.00040547,7]
[357302581,1743999085920,-618.40006905,0.00040547,7]
[357302582,1743999085931,-500.0,0.00040547,7]
[357302583,1743999085942,-500.0,0.00040547,7]
[357302584,1743999085954,-537.36,0.00040547,7]